[Event "Chinese Championship-B Women 2024"]
[Site "Liaocheng"]
[Date "2024.04.24"]
[Round "7.8"]
[White "Wang, Xiaoyan"]
[Black "Zhu, Zile"]
[Result "1/2-1/2"]
[WhiteElo "1932"]
[BlackElo "1819"]
[PlyCount "62"]
[EventDate "2024.04.24"]
[EventType "swiss"]
[EventCountry "CHN"]
[TimeControl "5400+30"]

1. d4 {[%emt 0:00:02]} Nf6 {[%emt 0:02:43]} 2. c4 {[%emt 0:00:03]} e6 {[%emt 1:28:47]} 3. Nf3 {[%emt 0:01:02]} b6 {[%emt 0:00:00]} 4. g3 {[%emt 0:00:30]} Bb7 {[%emt 0:00:00]} 5. Bg2 {[%emt 0:00:41]} Be7 {[%emt 0:00:00]} 6. O-O {[%emt 0:00:45]} O-O {[%emt 0:00:00]} 7. Nc3 {[%emt 0:00:18]} Ne4 {[%emt 0:00:00]} 8. Bd2 {[%emt 0:00:29]} f5 {[%emt 0:00:00]} 9. Qc2 {[%emt 0:00:21]} Nxc3 {[%emt 0:00:00]} 10. Bxc3 {[%emt 0:01:12]} Be4 {[%emt 0:00:00]} 11. Qb3 {[%emt 0:11:09]} d6 {[%emt 0:00:00]} 12. Rfd1 {[%emt 0:03:25]} Qe8 {[%emt 0:00:00]} 13. Ne1 {[%emt 0:09:06]} Bxg2 {[%emt 0:00:00]} 14. Nxg2 {[%emt 0:00:15]} Bf6 {[%emt 0:00:00]} 15. Rac1 {[%emt 0:08:02]} g6 {[%emt 0:00:00]} 16. Nf4 {[%emt 0:03:29]} g5 {[%emt 0:00:00]} 17. Ng2 {[%emt 0:06:09]} Rf7 {[%emt 0:00:00]} 18. Qc2 {[%emt 0:01:42]} Nd7 {[%emt 0:00:00]} 19. b4 {[%emt 0:13:50]} e5 {[%emt 0:00:00]} 20. Ne3 {[%emt 0:08:57]} exd4 {[%emt 0:00:00]} 21. Bxd4 {[%emt 0:00:11]} Bxd4 {[%emt 0:00:00]} 22. Rxd4 {[%emt 0:00:09]} Qe6 {[%emt 0:00:00]} 23. Nd5 {[%emt 0:06:26]} Nf6 {[%emt 0:00:00]} 24. Nxf6+ {[%emt 0:06:44]} Qxf6 {[%emt 0:00:00]} 25. e3 {[%emt 0:01:57]} c5 {[%emt 0:00:00]} 26. Rd5 {[%emt 0:01:42]} f4 {[%emt 0:00:00]} 27. exf4 {[%emt 0:02:13]} gxf4 {[%emt 0:00:00]} 28. Rcd1 {[%emt 0:04:06]} fxg3 {[%emt 0:00:42]} 29. hxg3 {[%emt 0:00:05]} Raf8 {[%emt 0:01:02]} 30. R1d2 {[%emt 0:00:51]} cxb4 {[%emt 0:02:17]} 31. Rxd6 {[%emt 0:00:06]} Qe5 {[%emt 0:00:58]} 1/2-1/2

[Event "Chinese Championship-B Women 2024"]
[Site "Liaocheng"]
[Date "2024.04.24"]
[Round "7.9"]
[White "Zhao, Chenyu"]
[Black "Guo, Hanxi"]
[Result "0-1"]
[WhiteElo "1909"]
[BlackElo "1699"]
[PlyCount "144"]
[EventDate "2024.04.24"]
[EventType "swiss"]
[EventCountry "CHN"]
[TimeControl "5400+30"]

1. e4 {[%emt 0:00:01]} c5 {[%emt 0:00:03]} 2. Nf3 {[%emt 0:00:04]} Nc6 {[%emt 0:00:03]} 3. Bb5 {[%emt 0:00:04]} e6 {[%emt 0:00:04]} 4. O-O {[%emt 0:00:04]} Nge7 {[%emt 1:32:20]} 5. Re1 {[%emt 0:00:18]} a6 {[%emt 0:00:00]} 6. Bf1 {[%emt 1:32:59]} d5 {[%emt 0:00:00]} 7. exd5 {[%emt 0:00:00]} Nxd5 {[%emt 0:00:00]} 8. d4 {[%emt 0:00:00]} Nf6 {[%emt 0:00:00]} 9. Be3 {[%emt 0:00:00]} cxd4 {[%emt 0:00:00]} 10. Nxd4 {[%emt 0:00:00]} Nxd4 {[%emt 0:00:00]} 11. Bxd4 {[%emt 0:00:00]} Be7 {[%emt 0:00:00]} 12. c3 {[%emt 0:03:00]} O-O {[%emt 0:00:00]} 13. Nd2 {[%emt 0:00:30]} Bd7 {[%emt 0:04:30]} 14. Nc4 {[%emt 0:00:30]} Bc6 {[%emt 0:00:30]} 15. Ne5 {[%emt 0:00:30]} Qc7 {[%emt 0:00:30]} 16. Bd3 {[%emt 0:00:30]} Rfd8 {[%emt 0:00:30]} 17. a4 {[%emt 0:00:30]} Bd5 {[%emt 0:00:30]} 18. c4 {[%emt 0:00:30]} Bc6 {[%emt 0:00:00]} 19. a5 {[%emt 0:00:30]} Rxd4 {[%emt 0:01:00]} 20. Bxh7+ {[%emt 0:00:00]} Nxh7 21. Qxd4 {[%emt 0:00:00]} Bf6 22. Qc5 {[%emt 0:01:30]} Rd8 {[%emt 0:01:30]} 23. Nxc6 {[%emt 0:00:00]} Qxc6 24. Qxc6 {[%emt 0:01:00]} bxc6 {[%emt 0:01:00]} 25. Rad1 {[%emt 0:00:00]} Rb8 {[%emt 0:00:00]} 26. Rd6 Rc8 {[%emt 0:00:00]} 27. Rd7 Bxb2 {[%emt 0:00:00]} 28. Rb1 {[%emt 0:00:00]} Bc3 {[%emt 0:00:00]} 29. Rb6 {[%emt 0:00:00]} Bxa5 {[%emt 0:00:00]} 30. Rxa6 {[%emt 0:00:00]} Bb4 {[%emt 0:00:00]} 31. Raa7 {[%emt 0:00:00]} Rf8 {[%emt 0:00:00]} 32. Rdc7 {[%emt 0:00:00]} c5 {[%emt 0:00:00]} 33. Kf1 {[%emt 0:00:00]} Bc3 {[%emt 0:00:14]} 34. Rab7 {[%emt 0:00:00]} Bd4 {[%emt 0:00:14]} 35. Ke2 {[%emt 0:00:00]} Ng5 {[%emt 0:01:27]} 36. f3 {[%emt 0:00:00]} e5 {[%emt 0:00:23]} 37. Re7 {[%emt 0:01:03]} Ne6 {[%emt 0:04:12]} 38. g3 {[%emt 0:00:44]} Bg1 {[%emt 0:00:00]} 39. Kf1 {[%emt 0:00:32]} Bd4 {[%emt 0:00:00]} 40. Ke2 {[%emt 0:00:07]} Bc3 {[%emt 0:00:59]} 41. Kd3 {[%emt 0:00:30]} Ba1 {[%emt 0:00:26]} 42. Ra7 {[%emt 0:01:43]} Bd4 {[%emt 0:00:31]} 43. Ke2 {[%emt 0:01:00]} g6 {[%emt 0:00:21]} 44. Rab7 {[%emt 0:01:07]} Ng7 {[%emt 0:00:19]} 45. Red7 {[%emt 0:01:13]} Nf5 {[%emt 0:00:22]} 46. g4 {[%emt 0:00:56]} Ne3 {[%emt 0:00:36]} 47. Kd3 {[%emt 0:00:15]} Ng2 {[%emt 0:00:10]} 48. Ke2 {[%emt 0:00:34]} Nf4+ {[%emt 0:00:16]} 49. Kf1 {[%emt 0:02:46]} Ra8 {[%emt 0:02:00]} 50. Ra7 {[%emt 0:00:30]} Rxa7 {[%emt 0:00:00]} 51. Rxa7 {[%emt 0:00:30]} Nd3 {[%emt 0:01:00]} 52. Ke2 {[%emt 0:00:00]} Nb2 53. Rc7 {[%emt 0:01:00]} Nxc4 {[%emt 0:00:00]} 54. Kd3 {[%emt 0:00:30]} Ne3 {[%emt 0:01:30]} 55. g5 {[%emt 0:00:30]} Nd5 {[%emt 0:00:00]} 56. Rc8+ {[%emt 0:00:00]} Kg7 {[%emt 0:00:00]} 57. h4 {[%emt 0:00:00]} Nf4+ {[%emt 0:01:30]} 58. Ke4 {[%emt 0:00:00]} Ng2 {[%emt 0:00:30]} 59. f4 {[%emt 0:00:00]} Nxf4 {[%emt 0:00:00]} 60. Kf3 {[%emt 0:00:00]} Nd5 {[%emt 0:00:00]} 61. Rd8 {[%emt 0:00:00]} Ne3 {[%emt 0:00:00]} 62. Rc8 {[%emt 0:00:00]} c4 {[%emt 0:00:00]} 63. Ke2 {[%emt 0:04:00]} c3 {[%emt 0:02:30]} 64. Rb8 {[%emt 0:00:00]} Nc4 {[%emt 0:00:00]} 65. Kd3 {[%emt 0:00:00]} Nd6 {[%emt 0:00:00]} 66. Rd8 {[%emt 0:01:30]} Nf5 {[%emt 0:00:00]} 67. Rc8 {[%emt 0:00:00]} Nxh4 {[%emt 0:00:00]} 68. Ke4 {[%emt 0:00:00]} Ng2 {[%emt 0:00:00]} 69. Kd3 {[%emt 0:00:00]} Nf4+ {[%emt 0:00:00]} 70. Ke4 {[%emt 0:00:00]} Ne6 {[%emt 0:00:00]} 71. Rc6 {[%emt 0:00:00]} Nc5+ {[%emt 0:00:00]} 72. Kf3 {[%emt 0:00:00]} c2 {[%emt 0:00:00]} 0-1

[Event "Chinese Championship-B Women 2024"]
[Site "Liaocheng"]
[Date "2024.04.24"]
[Round "7.10"]
[White "Men, Jiayi"]
[Black "Wu, Shuang(Hlj)"]
[Result "1/2-1/2"]
[WhiteElo "1845"]
[BlackElo "1701"]
[PlyCount "66"]
[EventDate "2024.04.24"]
[EventType "swiss"]
[EventCountry "CHN"]
[TimeControl "5400+30"]

1. Nf3 {[%emt 0:00:57]} Nf6 {[%emt 0:00:11]} 2. g3 {[%emt 0:00:17]} d5 {[%emt 0:00:07]} 3. Bg2 {[%emt 0:00:41]} c6 {[%emt 0:01:07]} 4. O-O {[%emt 0:00:45]} Bf5 {[%emt 0:00:27]} 5. d4 {[%emt 0:00:30]} e6 {[%emt 0:00:18]} 6. c4 {[%emt 1:30:20]} Nbd7 {[%emt 1:31:20]} 7. a4 {[%emt 0:00:30]} h6 {[%emt 0:00:30]} 8. Bf4 {[%emt 0:00:30]} Be7 {[%emt 0:00:30]} 9. Nc3 {[%emt 0:00:30]} O-O {[%emt 0:00:30]} 10. cxd5 {[%emt 0:00:00]} exd5 11. Qb3 {[%emt 0:01:00]} Qb6 {[%emt 0:01:00]} 12. Qxb6 {[%emt 0:00:30]} Nxb6 {[%emt 0:00:30]} 13. Ne5 {[%emt 0:00:30]} a5 {[%emt 0:00:30]} 14. f3 {[%emt 0:00:00]} c5 {[%emt 0:00:00]} 15. e4 {[%emt 0:01:00]} cxd4 {[%emt 0:01:00]} 16. exf5 {[%emt 0:00:00]} dxc3 {[%emt 0:00:00]} 17. bxc3 {[%emt 0:00:00]} Rac8 {[%emt 0:01:00]} 18. Be3 {[%emt 0:00:00]} Nc4 {[%emt 0:00:00]} 19. Bd4 {[%emt 0:02:00]} Nxe5 {[%emt 0:00:00]} 20. Bxe5 {[%emt 0:00:00]} Bc5+ {[%emt 0:00:00]} 21. Kh1 {[%emt 0:00:00]} Nd7 {[%emt 0:00:00]} 22. f4 {[%emt 0:01:30]} Nxe5 {[%emt 0:00:00]} 23. fxe5 {[%emt 0:00:30]} d4 {[%emt 0:03:00]} 24. Bxb7 {[%emt 0:00:00]} Rc7 25. cxd4 Bxd4 26. Rab1 {[%emt 0:00:00]} Bxe5 {[%emt 0:00:00]} 27. Rfc1 {[%emt 0:00:00]} Rxc1+ {[%emt 0:00:00]} 28. Rxc1 {[%emt 0:00:00]} Bd6 {[%emt 0:00:00]} 29. Rc6 {[%emt 0:00:00]} Bb4 {[%emt 0:03:00]} 30. Rc7 {[%emt 0:00:00]} Rd8 {[%emt 0:00:30]} 31. Kg2 {[%emt 0:04:00]} Bd6 {[%emt 0:00:30]} 32. Rc2 {[%emt 0:00:30]} Kf8 {[%emt 0:00:30]} 33. Kf3 {[%emt 0:00:00]} Ke7 {[%emt 0:00:30]} 1/2-1/2

[Event "Chinese Championship-B Women 2024"]
[Site "Liaocheng"]
[Date "2024.04.24"]
[Round "7.11"]
[White "Cui, Wen"]
[Black "Li, Peishan"]
[Result "1/2-1/2"]
[WhiteElo "1825"]
[BlackElo "1647"]
[PlyCount "88"]
[EventDate "2024.04.24"]
[EventType "swiss"]
[EventCountry "CHN"]
[TimeControl "5400+30"]

1. e4 {[%emt 0:02:55]} c5 {[%emt 0:00:04]} 2. Nf3 {[%emt 0:00:13]} e6 {[%emt 0:00:06]} 3. d4 {[%emt 0:00:08]} cxd4 {[%emt 0:00:06]} 4. Nxd4 {[%emt 0:00:09]} a6 {[%emt 0:00:07]} 5. Nc3 {[%emt 0:00:14]} Qc7 {[%emt 0:00:11]} 6. Bd3 {[%emt 0:00:20]} Nf6 {[%emt 0:00:32]} 7. O-O {[%emt 0:00:49]} b5 {[%emt 0:02:24]} 8. Re1 {[%emt 0:03:40]} d6 {[%emt 0:06:22]} 9. a4 {[%emt 0:02:46]} bxa4 {[%emt 0:06:10]} 10. Nxa4 {[%emt 0:06:38]} Be7 {[%emt 0:04:08]} 11. b3 {[%emt 0:10:09]} O-O {[%emt 0:02:08]} 12. f4 {[%emt 0:06:10]} Bb7 {[%emt 0:08:32]} 13. Bb2 {[%emt 0:08:28]} Nc6 {[%emt 0:09:19]} 14. Nxc6 {[%emt 0:03:36]} Bxc6 {[%emt 0:00:56]} 15. Kh1 {[%emt 0:03:32]} Rfe8 {[%emt 0:10:43]} 16. Qe2 {[%emt 0:06:49]} a5 {[%emt 0:10:12]} 17. Nc3 {[%emt 0:04:06]} Qb7 {[%emt 0:07:58]} 18. Bb5 {[%emt 0:12:31]} Bxb5 {[%emt 0:02:48]} 19. Qxb5 {[%emt 0:00:18]} Qxb5 {[%emt 0:00:21]} 20. Nxb5 {[%emt 0:00:07]} Rec8 {[%emt 0:01:53]} 21. Re2 {[%emt 0:03:15]} d5 {[%emt 0:03:04]} 22. exd5 {[%emt 0:02:58]} Nxd5 {[%emt 0:00:05]} 23. f5 {[%emt 0:00:47]} Nb4 {[%emt 0:07:01]} 24. fxe6 {[%emt 0:01:43]} Rxc2 {[%emt 0:01:04]} 25. Rxc2 {[%emt 0:06:58]} Nxc2 {[%emt 0:00:04]} 26. Rc1 {[%emt 0:00:33]} Rd8 {[%emt 0:04:16]} 27. h3 {[%emt 0:03:59]} Rd2 {[%emt 0:06:03]} 28. Nd4 {[%emt 0:02:27]} fxe6 {[%emt 0:02:25]} 29. Rxc2 {[%emt 0:00:12]} Rd1+ {[%emt 0:00:08]} 30. Kh2 {[%emt 0:00:06]} Bd6+ {[%emt 0:00:06]} 31. g3 {[%emt 0:00:06]} Rd3 {[%emt 0:00:25]} 32. Ne2 {[%emt 0:02:31]} Rxb3 {[%emt 0:00:21]} 33. Kg2 {[%emt 0:00:44]} a4 {[%emt 0:01:56]} 34. Kf2 {[%emt 0:00:38]} Kf7 {[%emt 0:03:37]} 35. Bc3 {[%emt 0:01:56]} e5 {[%emt 0:00:43]} 36. Ke3 {[%emt 0:01:48]} Ke6 {[%emt 0:00:43]} 37. Ke4 {[%emt 0:00:17]} a3 {[%emt 0:00:33]} 38. Ng1 {[%emt 0:01:36]} Rb8 {[%emt 0:00:47]} 39. Nf3 {[%emt 0:01:04]} Rc8 {[%emt 0:00:04]} 40. Ne1 {[%emt 0:01:45]} Rc4+ {[%emt 0:00:18]} 41. Kd3 {[%emt 0:00:13]} Rc7 {[%emt 0:00:25]} 42. Ng2 {[%emt 0:01:01]} e4+ {[%emt 0:00:48]} 43. Kxe4 {[%emt 0:00:28]} a2 {[%emt 0:00:58]} 44. Rxa2 {[%emt 0:00:22]} Rxc3 {[%emt 0:00:03]} 1/2-1/2

[Event "Chinese Championship-B Women 2024"]
[Site "Liaocheng"]
[Date "2024.04.24"]
[Round "7.12"]
[White "Pi, Aiying"]
[Black "Shi Shuhua"]
[Result "1/2-1/2"]
[WhiteElo "1617"]
[BlackElo "1840"]
[PlyCount "75"]
[EventDate "2024.04.24"]
[EventType "swiss"]
[EventCountry "CHN"]
[TimeControl "5400+30"]

1. e4 {[%emt 0:00:05]} e5 {[%emt 0:01:04]} 2. Nf3 {[%emt 0:00:15]} Nf6 {[%emt 0:00:08]} 3. d4 {[%emt 0:00:16]} Nxe4 {[%emt 0:00:18]} 4. Bd3 {[%emt 0:00:04]} d5 {[%emt 0:00:41]} 5. Nxe5 {[%emt 0:00:08]} Bd6 {[%emt 0:01:08]} 6. O-O {[%emt 0:00:35]} O-O {[%emt 0:00:32]} 7. Nd2 {[%emt 0:05:35]} Nxd2 {[%emt 0:05:00]} 8. Bxd2 {[%emt 0:02:55]} c5 {[%emt 0:00:37]} 9. c3 {[%emt 0:04:22]} Nc6 {[%emt 0:01:05]} 10. Nxc6 {[%emt 0:04:31]} bxc6 {[%emt 0:00:04]} 11. Qh5 {[%emt 0:07:02]} f5 {[%emt 0:08:03]} 12. b3 {[%emt 0:15:58]} cxd4 {[%emt 0:03:19]} 13. cxd4 {[%emt 0:00:07]} Qf6 {[%emt 0:01:01]} 14. Be3 {[%emt 0:04:38]} Bd7 {[%emt 0:01:21]} 15. Qg5 {[%emt 0:06:25]} Qxg5 {[%emt 0:05:34]} 16. Bxg5 {[%emt 0:00:05]} f4 {[%emt 0:00:15]} 17. Bh4 {[%emt 0:05:13]} f3 {[%emt 0:03:25]} 18. Bg3 {[%emt 0:01:08]} fxg2 {[%emt 0:00:54]} 19. Kxg2 {[%emt 0:00:25]} Rf6 {[%emt 0:03:08]} 20. Bxd6 {[%emt 0:03:35]} Rxd6 {[%emt 0:00:06]} 21. f4 {[%emt 0:02:24]} Re8 {[%emt 0:04:33]} 22. Rae1 {[%emt 0:01:15]} Rde6 {[%emt 0:02:58]} 23. Re5 {[%emt 0:01:46]} g6 {[%emt 0:05:30]} 24. Rfe1 {[%emt 0:04:10]} Kf7 {[%emt 0:00:48]} 25. Kg3 {[%emt 0:01:18]} Rg8 {[%emt 0:07:48]} 26. h4 {[%emt 0:04:54]} Kf6 {[%emt 0:01:12]} 27. Rc1 {[%emt 0:03:06]} h6 {[%emt 0:06:26]} 28. Rf1 {[%emt 0:05:03]} a5 {[%emt 0:01:01]} 29. Be2 {[%emt 0:01:33]} Re7 {[%emt 0:02:14]} 30. Bg4 {[%emt 0:01:46]} Rb8 {[%emt 0:08:25]} 31. Bxd7 {[%emt 0:05:32]} Rxd7 {[%emt 0:00:05]} 32. f5 {[%emt 0:01:05]} gxf5 {[%emt 0:01:12]} 33. Rfxf5+ {[%emt 0:01:20]} Kg7 {[%emt 0:00:40]} 34. Re6 {[%emt 0:00:34]} Rb4 {[%emt 0:00:59]} 35. Rxc6 {[%emt 0:03:37]} Rxd4 {[%emt 0:00:10]} 36. Rc5 {[%emt 0:00:45]} Kg6 {[%emt 0:02:15]} 37. Re5 {[%emt 0:00:31]} Kf6 {[%emt 0:03:13]} 38. Rh5 {[%emt 0:00:48]} 1/2-1/2

[Event "Chinese Championship-B Women 2024"]
[Site "Liaocheng"]
[Date "2024.04.24"]
[Round "7.13"]
[White "Gao, Muziyan"]
[Black "Yu, Xilei"]
[Result "1-0"]
[WhiteElo "1891"]
[BlackElo "1676"]
[PlyCount "87"]
[EventDate "2024.04.24"]
[EventType "swiss"]
[EventCountry "CHN"]
[TimeControl "5400+30"]

1. Nf3 {[%emt 0:00:02]} Nf6 {[%emt 0:00:13]} 2. g3 {[%emt 0:00:05]} g6 {[%emt 0:00:30]} 3. Bg2 {[%emt 0:00:30]} Bg7 {[%emt 0:00:00]} 4. d4 {[%emt 0:00:11]} d5 {[%emt 1:31:47]} 5. c4 {[%emt 0:02:09]} c6 {[%emt 0:00:00]} 6. cxd5 {[%emt 0:05:34]} cxd5 {[%emt 0:00:00]} 7. O-O {[%emt 0:04:02]} O-O {[%emt 0:00:00]} 8. Ne5 {[%emt 0:00:32]} Nbd7 {[%emt 0:00:00]} 9. Nc3 {[%emt 0:00:53]} Nb6 {[%emt 0:00:00]} 10. a4 {[%emt 0:05:30]} e6 {[%emt 0:00:00]} 11. b3 {[%emt 0:02:53]} Nfd7 {[%emt 0:00:00]} 12. Nf3 {[%emt 0:06:22]} a5 {[%emt 0:00:00]} 13. Nb5 {[%emt 0:00:26]} f5 {[%emt 0:00:00]} 14. Bg5 {[%emt 0:05:58]} Nf6 {[%emt 0:00:00]} 15. Bf4 {[%emt 0:05:53]} Ne8 {[%emt 0:00:00]} 16. Rc1 {[%emt 0:02:10]} h6 {[%emt 0:00:00]} 17. h4 {[%emt 0:55:50]} Bd7 {[%emt 0:00:00]} 18. Nc7 {[%emt 0:00:00]} Rc8 {[%emt 0:00:00]} 19. Nxe8 {[%emt 0:00:00]} Rxe8 {[%emt 0:00:00]} 20. Qd2 {[%emt 0:00:00]} Kh7 {[%emt 0:00:00]} 21. Qxa5 {[%emt 0:00:00]} Bc6 {[%emt 0:00:00]} 22. Ne5 {[%emt 0:00:00]} Bxe5 {[%emt 0:00:00]} 23. Bxe5 {[%emt 0:00:00]} Ra8 {[%emt 0:00:00]} 24. Qd2 {[%emt 0:00:00]} Nd7 {[%emt 0:00:00]} 25. Bf4 {[%emt 0:00:00]} h5 {[%emt 0:00:00]} 26. Qd3 {[%emt 0:00:00]} Qb6 {[%emt 0:00:00]} 27. Bd2 {[%emt 0:00:00]} e5 {[%emt 0:00:00]} 28. dxe5 {[%emt 0:00:00]} Nxe5 {[%emt 0:00:00]} 29. Qc2 {[%emt 0:00:00]} d4 {[%emt 0:00:00]} 30. Bf4 {[%emt 0:00:00]} Rac8 {[%emt 0:00:00]} 31. Bxe5 {[%emt 0:00:00]} Bxg2 {[%emt 0:00:00]} 32. Qxc8 {[%emt 0:00:00]} Rxc8 {[%emt 0:00:00]} 33. Rxc8 {[%emt 0:00:00]} g5 {[%emt 0:00:00]} 34. Kxg2 {[%emt 0:00:00]} Qe6 {[%emt 0:00:00]} 35. Rc7+ {[%emt 0:00:00]} Kg8 {[%emt 0:00:00]} 36. f4 {[%emt 0:09:30]} Qd5+ {[%emt 0:00:00]} 37. Kf2 {[%emt 0:00:00]} Qe4 {[%emt 0:00:00]} 38. Rfc1 {[%emt 0:00:00]} Qe3+ {[%emt 0:00:00]} 39. Kf1 {[%emt 0:00:00]} Kf8 {[%emt 0:00:00]} 40. Bd6+ {[%emt 0:00:00]} Kg8 {[%emt 0:00:00]} 41. Rc8+ {[%emt 0:00:00]} Kg7 {[%emt 0:00:00]} 42. R1c7+ {[%emt 0:00:00]} Kh6 {[%emt 0:00:00]} 43. hxg5+ {[%emt 0:00:00]} Kg6 {[%emt 0:00:00]} 44. Rg8# {[%emt 0:00:00]} 1-0

[Event "Chinese Championship-B Women 2024"]
[Site "Liaocheng"]
[Date "2024.04.24"]
[Round "7.14"]
[White "Wu, Yiting"]
[Black "Liu, Youyin"]
[Result "0-1"]
[WhiteElo "1721"]
[BlackElo "1840"]
[PlyCount "178"]
[EventDate "2024.04.24"]
[EventType "swiss"]
[EventCountry "CHN"]
[TimeControl "5400+30"]

1. e4 {[%emt 0:00:02]} c6 {[%emt 0:00:26]} 2. d4 {[%emt 0:00:06]} d5 {[%emt 0:00:05]} 3. Nc3 {[%emt 0:00:04]} dxe4 {[%emt 0:05:51]} 4. Nxe4 {[%emt 0:00:08]} Bf5 {[%emt 0:00:16]} 5. Ng3 {[%emt 0:00:09]} Bg6 {[%emt 0:00:11]} 6. h4 {[%emt 0:00:04]} h6 {[%emt 0:01:48]} 7. Nf3 {[%emt 0:00:07]} Nf6 {[%emt 0:03:33]} 8. Ne5 {[%emt 0:08:06]} Bh7 {[%emt 0:03:23]} 9. Bc4 {[%emt 0:06:39]} e6 {[%emt 0:07:16]} 10. Qe2 {[%emt 0:06:53]} Nd5 {[%emt 0:27:31]} 11. Bxd5 {[%emt 0:09:34]} Qxd5 {[%emt 0:02:21]} 12. Qh5 {[%emt 0:03:48]} Bg8 {[%emt 0:06:25]} 13. O-O {[%emt 0:11:53]} Nd7 {[%emt 0:01:09]} 14. Rd1 {[%emt 0:05:31]} Nf6 {[%emt 0:07:16]} 15. Qe2 {[%emt 0:00:31]} Be7 {[%emt 0:04:49]} 16. c4 {[%emt 0:02:22]} Qd8 {[%emt 0:02:32]} 17. Ne4 {[%emt 0:09:03]} Nxe4 {[%emt 0:01:16]} 18. Qxe4 {[%emt 0:00:04]} Bh7 {[%emt 0:08:41]} 19. Qg4 {[%emt 0:00:47]} Bf6 {[%emt 0:00:34]} 20. Bf4 {[%emt 0:04:45]} Bf5 {[%emt 0:00:39]} 21. Qg3 {[%emt 0:03:30]} g5 {[%emt 0:06:50]} 22. hxg5 {[%emt 0:03:10]} hxg5 {[%emt 0:01:42]} 23. Be3 {[%emt 0:01:36]} Qe7 {[%emt 0:01:37]} 24. Ng4 {[%emt 0:09:12]} Bxg4 {[%emt 0:00:22]} 25. Qxg4 {[%emt 0:00:01]} Rh4 {[%emt 0:02:13]} 26. Qg3 {[%emt 0:00:51]} O-O-O {[%emt 0:01:16]} 27. d5 {[%emt 0:03:13]} Rdh8 {[%emt 0:00:24]} 28. Kf1 {[%emt 0:00:39]} Rxc4 {[%emt 0:00:49]} 29. dxc6 {[%emt 0:01:40]} Rxc6 {[%emt 0:01:02]} 30. Bxa7 {[%emt 0:01:15]} Qc7 {[%emt 0:00:41]} 31. Qxc7+ {[%emt 0:04:51]} Kxc7 {[%emt 0:00:02]} 32. Be3 {[%emt 0:00:59]} Bxb2 {[%emt 0:00:33]} 33. Rab1 {[%emt 0:00:08]} Bf6 {[%emt 0:00:11]} 34. Ke2 {[%emt 0:01:15]} Rc2+ {[%emt 0:00:48]} 35. Rd2 {[%emt 0:00:05]} Rxd2+ {[%emt 0:00:06]} 36. Kxd2 {[%emt 0:01:16]} Ra8 {[%emt 0:00:35]} 37. Rc1+ {[%emt 0:00:07]} Kd6 {[%emt 0:00:20]} 38. Rc2 {[%emt 0:00:07]} b5 {[%emt 0:00:34]} 39. Kd3 {[%emt 0:01:38]} Ra3+ {[%emt 0:00:52]} 40. Ke4 {[%emt 0:00:49]} Ra4+ {[%emt 0:00:14]} 41. Kd3 {[%emt 0:01:06]} g4 {[%emt 0:01:30]} 42. g3 {[%emt 0:00:54]} Ra3+ {[%emt 0:01:20]} 43. Ke2 {[%emt 0:01:13]} Rc3 {[%emt 0:00:34]} 44. Rd2+ {[%emt 0:00:50]} Kc6 {[%emt 0:00:16]} 45. Kd1 {[%emt 0:00:22]} Rc4 {[%emt 0:00:45]} 46. Rd3 {[%emt 0:01:01]} b4 {[%emt 0:00:33]} 47. Rd2 {[%emt 0:00:21]} Bc3 {[%emt 0:00:18]} 48. Rc2 {[%emt 0:00:17]} f5 {[%emt 0:00:09]} 49. Ke2 {[%emt 0:00:50]} Kd5 {[%emt 0:00:16]} 50. Kd1 {[%emt 0:00:30]} Bd4 {[%emt 0:01:40]} 51. Re2 {[%emt 0:00:18]} Bxe3 {[%emt 0:00:12]} 52. Rxe3 {[%emt 0:00:20]} e5 {[%emt 0:00:39]} 53. Re2 {[%emt 0:00:22]} Kd4 {[%emt 0:00:22]} 54. Rd2+ {[%emt 0:00:57]} Ke4 {[%emt 0:00:06]} 55. Ke2 {[%emt 0:00:28]} Rc3 {[%emt 0:00:14]} 56. Rb2 {[%emt 0:00:18]} Rc4 {[%emt 0:00:06]} 57. Rd2 {[%emt 0:00:09]} Rd4 {[%emt 0:00:11]} 58. Rb2 {[%emt 0:00:13]} Kd5 {[%emt 0:00:36]} 59. Rc2 {[%emt 0:00:23]} Rc4 {[%emt 0:00:35]} 60. Rb2 {[%emt 0:00:17]} Kd4 {[%emt 0:00:16]} 61. Kd2 {[%emt 0:01:07]} Kc5 {[%emt 0:00:38]} 62. Ke2 {[%emt 0:00:44]} Rc3 {[%emt 0:00:10]} 63. Kd2 {[%emt 0:00:34]} Kb5 {[%emt 0:00:59]} 64. Ke1 {[%emt 0:01:10]} Ka4 {[%emt 0:01:31]} 65. Rd2 {[%emt 0:00:15]} Ka3 {[%emt 0:00:21]} 66. Kd1 {[%emt 0:00:17]} f4 {[%emt 0:00:42]} 67. gxf4 {[%emt 0:00:13]} exf4 {[%emt 0:00:08]} 68. Re2 {[%emt 0:00:23]} Rf3 {[%emt 0:00:20]} 69. Rd2 {[%emt 0:00:53]} g3 {[%emt 0:00:54]} 70. fxg3 {[%emt 0:00:12]} fxg3 {[%emt 0:00:03]} 71. Ke1 {[%emt 0:00:39]} Rf2 {[%emt 0:01:06]} 72. Rd3+ {[%emt 0:00:19]} Kxa2 {[%emt 0:00:07]} 73. Rxg3 {[%emt 0:00:02]} Rh2 {[%emt 0:00:28]} 74. Kd1 {[%emt 0:01:11]} b3 {[%emt 0:00:16]} 75. Rg8 {[%emt 0:00:12]} Rc2 {[%emt 0:00:58]} 76. Ra8+ {[%emt 0:00:20]} Kb1 {[%emt 0:00:41]} 77. Rb8 {[%emt 0:00:14]} Rb2 {[%emt 0:00:43]} 78. Rb7 {[%emt 0:00:20]} Ka1 {[%emt 0:00:10]} 79. Kc1 {[%emt 0:01:32]} Rb1+ {[%emt 0:00:14]} 80. Kd2 {[%emt 0:00:04]} Kb2 {[%emt 0:00:13]} 81. Rb8 {[%emt 0:00:39]} Rh1 {[%emt 0:01:00]} 82. Rb7 {[%emt 0:00:36]} Rh2+ {[%emt 0:00:18]} 83. Kd1 {[%emt 0:00:06]} Rh4 {[%emt 0:00:24]} 84. Rd7 {[%emt 0:01:16]} Kc3 {[%emt 0:00:26]} 85. Rc7+ {[%emt 0:00:09]} Rc4 {[%emt 0:00:50]} 86. Rb7 {[%emt 0:00:38]} b2 {[%emt 0:00:26]} 87. Rb8 {[%emt 0:00:34]} Rd4+ {[%emt 0:00:21]} 88. Ke2 {[%emt 0:00:31]} Rb4 {[%emt 0:00:18]} 89. Rc8+ {[%emt 0:00:54]} Kb3 {[%emt 0:00:08]} 0-1

[Event "Chinese Championship-B Women 2024"]
[Site "Liaocheng"]
[Date "2024.04.24"]
[Round "7.15"]
[White "He, Yixuan"]
[Black "Zhou, Lanqier"]
[Result "1/2-1/2"]
[WhiteElo "1812"]
[BlackElo "1654"]
[PlyCount "64"]
[EventDate "2024.04.24"]
[EventType "swiss"]
[EventCountry "CHN"]
[TimeControl "5400+30"]

1. e4 {[%emt 0:01:54]} d5 {[%emt 0:00:11]} 2. exd5 {[%emt 0:00:22]} Nf6 {[%emt 0:00:05]} 3. d4 {[%emt 0:02:42]} Nxd5 {[%emt 0:00:06]} 4. Nf3 {[%emt 0:00:51]} Bf5 {[%emt 0:00:28]} 5. a3 {[%emt 0:01:29]} e6 {[%emt 0:00:55]} 6. Be2 {[%emt 0:00:34]} Be7 {[%emt 0:02:43]} 7. c4 {[%emt 0:01:53]} Nf6 {[%emt 0:00:29]} 8. Nc3 {[%emt 0:00:21]} O-O {[%emt 0:04:40]} 9. O-O {[%emt 0:00:15]} c6 {[%emt 0:03:37]} 10. h3 {[%emt 0:03:00]} Qc7 {[%emt 0:02:45]} 11. Be3 {[%emt 0:04:38]} Nbd7 {[%emt 0:05:14]} 12. Rc1 {[%emt 0:01:46]} Rfd8 {[%emt 0:02:32]} 13. Qb3 {[%emt 0:06:45]} Ne4 {[%emt 0:18:41]} 14. d5 {[%emt 0:17:02]} Ndc5 {[%emt 0:05:55]} 15. Bxc5 {[%emt 0:03:31]} Nxc3 {[%emt 0:00:00]} 16. Rxc3 {[%emt 0:00:29]} Bxc5 {[%emt 0:00:00]} 17. Bd3 {[%emt 0:05:33]} Bxd3 {[%emt 0:11:26]} 18. Rxd3 {[%emt 0:00:03]} exd5 {[%emt 0:01:37]} 19. cxd5 {[%emt 0:00:05]} cxd5 {[%emt 0:01:01]} 20. Rxd5 {[%emt 0:00:18]} Rxd5 {[%emt 0:00:45]} 21. Qxd5 {[%emt 0:00:04]} Rd8 {[%emt 0:00:57]} 22. Qe4 {[%emt 0:02:56]} h6 {[%emt 0:03:30]} 23. Qe2 {[%emt 0:03:46]} Rd6 {[%emt 0:11:37]} 24. Qe8+ {[%emt 0:04:14]} Kh7 {[%emt 0:00:04]} 25. Qe4+ {[%emt 0:00:06]} Kg8 {[%emt 0:02:32]} 26. Qe8+ {[%emt 0:00:38]} Kh7 {[%emt 0:02:07]} 27. Qe4+ {[%emt 0:00:07]} g6 {[%emt 0:03:07]} 28. Qe5 {[%emt 0:06:15]} Qc6 {[%emt 0:01:02]} 29. Qc3 {[%emt 0:01:53]} Qd5 {[%emt 0:01:40]} 30. Re1 {[%emt 0:01:42]} Rd8 {[%emt 0:04:34]} 31. Re5 {[%emt 0:01:19]} Qd1+ {[%emt 0:00:05]} 32. Re1 {[%emt 0:00:30]} Qd5 {[%emt 0:00:43]} 1/2-1/2